{"text_format":"3","workbook":"xlsx","n_sheets":2,"sheets":["Lista profesorului","Date din listă"],"not_rendered":{"defined_names":6},"read":"whole","date_system":"1900"}

{"sheet":"Lista profesorului","index":0,"n_rows":10,"n_cols":10,"rows_kept":10,"merged":[[0,1,0,2],[0,4,0,8],[2,9,6,9]]}
[null,"Lista profesorului",null,"Date din listă","Legenda de culoare pentru stare este în această celulă: Neînceput este stilul normal, În desfășurare este R=91 G=133 B=49, Scadent astăzi este R=118 G=88 B=0, În așteptare este R=109 G=66 B=111, Finalizat este tăiat cu o linie, Anulat este R=191 G=191 B=191, iar Întârziat este R=191 G=33 B=28."]
[null,"ELEMENT","CATEGORIE","DATA DE ÎNCEPUT","DATA SCADENȚEI","ZILE RĂMASE","STARE","NOTE"]
[null,"Curățat sertare","Birou",{"$f":"DATE(YEAR(TODAY()),MONTH(TODAY())-1,6)","v":"2018-04-06"},{"$f":"DATE(YEAR(TODAY()),MONTH(TODAY())-1,16)","v":"2018-04-16"},{"$f":"IFERROR(IF(COUNT(Listă[[#This Row],[DATA DE ÎNCEPUT]]:Listă[[#This Row],[DATA SCADENȚEI]])<>2,\"\",IF(OR(Listă[[#This Row],[STARE]]=\"Finalizat\",Listă[[#This Row],[STARE]]=\"Anulat\",Listă[[#This Row],[STARE]]=\"În așteptare\"),\"\",Listă[[#This Row],[DATA SCADENȚEI]]-TODAY())),\"\")","v":""},"Finalizat",null,null,"Slicerul de stare se află în această celulă. Pentru a filtra lista după stare, selectați o stare din slicer. Apăsați lung tasta CTRL pentru a selecta mai multe opțiuni."]
[null,"Ordonat autocolante","Consumabile",{"$f":"DATE(YEAR(TODAY()),MONTH(TODAY())-1,11)","v":"2018-04-11"},{"$f":"DATE(YEAR(TODAY()),MONTH(TODAY())-1,21)","v":"2018-04-21"},{"$f":"IFERROR(IF(COUNT(Listă[[#This Row],[DATA DE ÎNCEPUT]]:Listă[[#This Row],[DATA SCADENȚEI]])<>2,\"\",IF(OR(Listă[[#This Row],[STARE]]=\"Finalizat\",Listă[[#This Row],[STARE]]=\"Anulat\",Listă[[#This Row],[STARE]]=\"În așteptare\"),\"\",Listă[[#This Row],[DATA SCADENȚEI]]-TODAY())),\"\")","v":""},"Finalizat"]
[null,"Șters și ceruit podeaua","Altele",{"$f":"DATE(YEAR(TODAY()),MONTH(TODAY()-1),DAY(TODAY())-25)","v":"2018-04-15"},{"$f":"DATE(YEAR(TODAY()),MONTH(TODAY())-1,26)","v":"2018-04-26"},{"$f":"IFERROR(IF(COUNT(Listă[[#This Row],[DATA DE ÎNCEPUT]]:Listă[[#This Row],[DATA SCADENȚEI]])<>2,\"\",IF(OR(Listă[[#This Row],[STARE]]=\"Finalizat\",Listă[[#This Row],[STARE]]=\"Anulat\",Listă[[#This Row],[STARE]]=\"În așteptare\"),\"\",Listă[[#This Row],[DATA SCADENȚEI]]-TODAY())),\"\")","v":""},"Finalizat"]
[null,"Creat etichete de nume","Consumabile",{"$f":"DATE(YEAR(TODAY()),MONTH(TODAY())-1,21)","v":"2018-04-21"},{"$f":"DATE(YEAR(TODAY()),MONTH(TODAY())-1,1)","v":"2018-04-01"},{"$f":"IFERROR(IF(COUNT(Listă[[#This Row],[DATA DE ÎNCEPUT]]:Listă[[#This Row],[DATA SCADENȚEI]])<>2,\"\",IF(OR(Listă[[#This Row],[STARE]]=\"Finalizat\",Listă[[#This Row],[STARE]]=\"Anulat\",Listă[[#This Row],[STARE]]=\"În așteptare\"),\"\",Listă[[#This Row],[DATA SCADENȚEI]]-TODAY())),\"\")","v":""},"În așteptare"]
[null,"Evaluat lucrări scrise trimestriale","Evaluări",{"$f":"DATE(YEAR(TODAY()),MONTH(TODAY())-1,26)","v":"2018-04-26"},{"$f":"TODAY()-5","v":"2018-05-05"},{"$f":"IFERROR(IF(COUNT(Listă[[#This Row],[DATA DE ÎNCEPUT]]:Listă[[#This Row],[DATA SCADENȚEI]])<>2,\"\",IF(OR(Listă[[#This Row],[STARE]]=\"Finalizat\",Listă[[#This Row],[STARE]]=\"Anulat\",Listă[[#This Row],[STARE]]=\"În așteptare\"),\"\",Listă[[#This Row],[DATA SCADENȚEI]]-TODAY())),\"\")","v":-5},"Întârziat"]
[null,"Memento prin e-mail pentru biletele de permisiune","Apeluri telefonice",{"$f":"DATE(YEAR(TODAY()),MONTH(TODAY()),1)","v":"2018-05-01"},{"$f":"TODAY()","v":"2018-05-10"},{"$f":"IFERROR(IF(COUNT(Listă[[#This Row],[DATA DE ÎNCEPUT]]:Listă[[#This Row],[DATA SCADENȚEI]])<>2,\"\",IF(OR(Listă[[#This Row],[STARE]]=\"Finalizat\",Listă[[#This Row],[STARE]]=\"Anulat\",Listă[[#This Row],[STARE]]=\"În așteptare\"),\"\",Listă[[#This Row],[DATA SCADENȚEI]]-TODAY())),\"\")","v":""},"Anulat"]
[null,"Evaluat probe orale","Birou",{"$f":"DATE(YEAR(TODAY()),MONTH(TODAY()),7)","v":"2018-05-07"},{"$f":"DATE(YEAR(TODAY()),MONTH(TODAY()),17)","v":"2018-05-17"},{"$f":"IFERROR(IF(COUNT(Listă[[#This Row],[DATA DE ÎNCEPUT]]:Listă[[#This Row],[DATA SCADENȚEI]])<>2,\"\",IF(OR(Listă[[#This Row],[STARE]]=\"Finalizat\",Listă[[#This Row],[STARE]]=\"Anulat\",Listă[[#This Row],[STARE]]=\"În așteptare\"),\"\",Listă[[#This Row],[DATA SCADENȚEI]]-TODAY())),\"\")","v":7},"În desfășurare"]
[null,"Ascuțit creioane","Consumabile",{"$f":"DATE(YEAR(TODAY()),MONTH(TODAY()),11)","v":"2018-05-11"},{"$f":"DATE(YEAR(TODAY()),MONTH(TODAY()),10)","v":"2018-05-10"},{"$f":"IFERROR(IF(COUNT(Listă[[#This Row],[DATA DE ÎNCEPUT]]:Listă[[#This Row],[DATA SCADENȚEI]])<>2,\"\",IF(OR(Listă[[#This Row],[STARE]]=\"Finalizat\",Listă[[#This Row],[STARE]]=\"Anulat\",Listă[[#This Row],[STARE]]=\"În așteptare\"),\"\",Listă[[#This Row],[DATA SCADENȚEI]]-TODAY())),\"\")","v":0},"În desfășurare"]

{"sheet":"Date din listă","index":1,"n_rows":13,"n_cols":3,"rows_kept":13}
[null,"Date din listă","Lista profesorului"]
[null,"Categorie"]
[null,"Birou"]
[null,"Consumabile"]
[null,"Lucruri de cumpărat"]
[null,"Apeluri telefonice"]
[null,"Idei noi"]
[null,"Evaluări"]
[null,"Echipă"]
[null,"Intervenții"]
[null,"Computer"]
[null,"Personal"]
[null,"Altele"]